bitfinex-derivatives/quotes_BTCF0:USTF0_20251209
["timestamp","ask_amount","ask_price","bid_price","bid_amount"]
[1765291664766,0.3618,90180.0,90170.0,0.00516636]
[1765291664767,0.3618,90180.0,90173.0,0.0110899]
[1765291665068,0.3618,90180.0,90175.0,0.004]
[1765291665270,0.3618,90180.0,90175.0,0.0150896]
[1765291666063,0.3618,90180.0,90175.0,0.004]
[1765291666064,0.0110896,90177.0,90175.0,0.004]
[1765291666258,0.3608,90178.0,90176.0,0.0110896]
[1765291667064,0.3608,90178.0,90170.0,0.00016636]
[1765291667255,0.005,90177.0,90176.0,0.0110896]
[1765291667856,0.3668,90178.0,90176.0,0.001]
[1765291668058,0.003,90177.0,90176.0,0.001]
[1765291668754,0.008,90177.0,90176.0,0.001]
[1765291669070,0.009,90177.0,90176.0,0.001]
[1765291674564,0.0110901,90172.0,90170.0,0.00016636]
[1765291674765,0.009,90177.0,90133.0,0.3608]
[1765291674766,0.0110927,90151.0,90138.0,0.3608]
[1765291674972,0.0110927,90151.0,90137.0,0.0110943]
[1765291674973,0.3608,90140.0,90137.0,0.0110943]
[1765291677274,0.3608,90140.0,90139.0,0.0110941]
[1765291677672,0.3618,90140.0,90139.0,0.0110941]
[1765291677875,0.00016636,90148.0,90147.0,0.0110932]
[1765291678180,0.3608,90158.0,90157.0,0.0110919]
[1765291678765,0.3608,90169.0,90148.0,0.011093]
[1765291678766,0.3608,90169.0,90168.0,0.0110906]
[1765291680474,0.36096636,90178.0,90177.0,0.0110895]
[1765291681284,0.0110903,90171.0,90168.0,0.001]
[1765291681574,0.72176636,90178.0,90166.0,0.0110908]
[1765291681575,0.3608,90169.0,90166.0,0.0110908]
[1765291682081,0.3608,90169.0,90159.0,0.00016636]
[1765291682278,0.3608,90160.0,90159.0,0.00016636]
[1765291682678,0.3608,90160.0,90143.0,0.0110936]
[1765291682872,0.3608,90160.0,90135.0,0.02952522]
[1765291682873,0.3608,90144.0,90135.0,0.02952522]
[1765291683083,0.3608,90144.0,90137.0,0.0110943]
[1765291683279,0.3608,90144.0,90141.0,0.0110938]
[1765291683783,0.3608,90144.0,90133.0,0.00016636]
[1765291683784,0.3608,90142.0,90133.0,0.00016636]
[1765291683987,0.3608,90134.0,90133.0,0.00016636]
[1765291684678,0.001,90144.0,90143.0,0.0110937]
[1765291685472,0.001,90144.0,90143.0,0.3718937]
[1765291685679,0.00016636,90152.0,90151.0,0.0110927]
[1765291685985,0.00016636,90152.0,90151.0,0.3718927]
[1765291686284,0.00016636,90152.0,90151.0,0.0110927]
[1765291686584,0.00016636,90152.0,90145.0,0.02981498]
[1765291686884,0.00116636,90152.0,90151.0,0.007]
[1765291687282,0.00016636,90152.0,90143.0,0.001]
[1765291687484,0.00216636,90152.0,90151.0,0.011]
[1765291688084,0.00116636,90152.0,90151.0,0.01]
[1765291689379,0.00116636,90152.0,90151.0,0.007]
[1765291689585,0.00116636,90152.0,90151.0,0.008]
[1765291689779,0.00116636,90152.0,90151.0,0.3688]
[1765291689986,0.3608,90172.0,90151.0,0.7688]
[1765291690177,0.3608,90172.0,90171.0,0.0110902]
[1765291690988,0.36096636,90181.0,90179.0,0.0110892]
[1765291691179,0.0110909,90166.0,90163.0,0.3608]
[1765291691378,0.0110912,90163.0,90162.0,0.00016636]
[1765291691991,0.001,90172.0,90162.0,0.00016636]
[1765291692186,0.001,90172.0,90169.0,0.0110903]
[1765291692779,0.01125536,90181.0,90173.0,0.0110899]
[1765291692983,0.00016636,90181.0,90179.0,0.0110891]
[1765291693490,0.00110878,90190.0,90189.0,0.011088]
[1765291694388,0.00016636,90199.0,90198.0,0.0110869]
[1765291695688,0.0981511,90247.0,90214.0,0.0110849]
[1765291695689,0.05875626,90231.0,90214.0,0.0110849]
[1765291695889,0.0110846,90217.0,90192.0,0.0110876]
[1765291696198,0.0110853,90211.0,90201.0,0.0110865]
[1765291696492,0.3608,90208.0,90201.0,0.0110865]
[1765291696793,0.3608,90208.0,90198.0,0.001]
[1765291696992,0.3608,90208.0,90202.0,0.0110864]
[1765291697196,0.3608,90208.0,90204.0,0.011086]
[1765291697686,0.3608,90208.0,90201.0,0.001]
[1765291697882,0.0110863,90203.0,90201.0,0.001]
[1765291698084,0.3608,90208.0,90201.0,0.001]
[1765291698391,0.20103128,90211.0,90210.0,0.0110854]
[1765291698392,0.004,90211.0,90210.0,0.0110854]
[1765291698785,0.002,90211.0,90210.0,0.0110854]
[1765291699390,0.3608,90219.0,90214.0,0.0110849]
[1765291700597,0.00610847,90215.0,90214.0,0.0120849]
[1765291701298,0.01010847,90215.0,90214.0,0.0120849]
[1765291701493,0.01010847,90215.0,90214.0,0.001]
[1765291701794,0.01010847,90215.0,90194.0,0.00016636]
[1765291701795,0.0110872,90196.0,90194.0,0.00016636]
[1765291702098,0.01010847,90215.0,90180.0,0.19703128]
[1765291702489,0.0110855,90210.0,90202.0,0.0110864]
[1765291702686,0.01010847,90215.0,90210.0,0.0110853]
[1765291702990,0.00610847,90215.0,90210.0,0.0110853]
[1765291703192,0.00210847,90215.0,90207.0,0.0110858]
[1765291703497,0.0110856,90209.0,90203.0,0.00016636]
[1765291703796,0.0110859,90206.0,90203.0,0.00016636]
[1765291703993,0.3608,90204.0,90203.0,0.01125266]
[1765291704592,0.3608,90204.0,90203.0,0.00016636]
[1765291705099,0.3608,90204.0,90169.0,0.0110904]
[1765291705298,0.002,90210.0,90184.0,0.0110886]
[1765291705299,0.3608,90185.0,90184.0,0.0110886]
[1765291705797,0.3608,90185.0,90179.0,0.0110891]
[1765291705987,0.0110891,90181.0,90173.0,0.0110899]
[1765291706297,0.0110891,90181.0,90168.0,0.3608]
[1765291706298,0.3608,90185.0,90168.0,0.00016636]
[1765291706492,0.3608,90185.0,90184.0,0.001]
[1765291706901,0.3618,90185.0,90184.0,0.005]
[1765291707288,0.3608,90185.0,90184.0,0.001]
[1765291707489,0.3618,90185.0,90173.0,0.002]
[1765291707789,0.3608,90177.0,90173.0,0.0130899]
[1765291707990,0.3608,90177.0,90175.0,0.0110896]
[1765291709496,0.3618,90177.0,90175.0,0.0170896]
[1765291710288,0.001,90177.0,90176.0,0.3608]
[1765291710482,0.00016636,90186.0,90185.0,0.0110885]
[1765291710698,0.00016636,90186.0,90185.0,0.3718885]
[1765291711998,0.00116636,90186.0,90185.0,0.3748885]
[1765291712495,0.3608,90211.0,90210.0,0.0110854]
[1765291713703,0.004,90211.0,90210.0,0.0120854]
[1765291713897,0.004,90211.0,90210.0,0.001]
[1765291714195,0.3648,90211.0,90210.0,0.001]
[1765291714396,0.3678,90211.0,90210.0,0.001]
[1765291714988,0.0110864,90202.0,90201.0,0.00016636]
[1765291715188,0.3718864,90202.0,90201.0,0.00016636]
[1765291716292,0.3728864,90202.0,90201.0,0.00116636]
[1765291717100,0.0110879,90190.0,90170.0,0.52068]
[1765291717302,0.3608,90187.0,90184.0,0.0110885]
[1765291717504,0.3608,90187.0,90179.0,0.0110892]
[1765291717797,0.3608,90187.0,90184.0,0.0110886]
[1765291717998,0.36096636,90195.0,90176.0,0.00016636]
[1765291718199,0.0110889,90182.0,90176.0,0.01125586]
[1765291718391,0.3608,90185.0,90176.0,0.01125586]
[1765291718392,0.3608,90177.0,90176.0,0.01125586]
[1765291718702,0.3718895,90177.0,90176.0,0.00016636]
[1765291719102,0.3718895,90177.0,90165.0,0.00110908]
[1765291719103,0.0110908,90167.0,90165.0,0.00110908]
[1765291719309,0.3608,90166.0,90165.0,0.00110908]
[1765291720002,0.00016636,90175.0,90165.0,0.00110908]
[1765291720199,0.00016636,90175.0,90171.0,0.0110901]
[1765291720404,0.3608,90172.0,90171.0,0.0110901]
[1765291720605,0.00016636,90175.0,90171.0,0.0110901]
[1765291721002,0.00016636,90175.0,90173.0,0.0110899]
[1765291721197,0.00016636,90175.0,90171.0,0.002]
[1765291721505,0.0110898,90174.0,90171.0,0.002]
[1765291722097,0.00016636,90175.0,90174.0,0.0110898]
[1765291722404,0.00116636,90175.0,90174.0,0.0110898]
[1765291722596,0.00016636,90175.0,90174.0,0.0110898]
[1765291723295,0.00116636,90175.0,90174.0,0.0160898]
[1765291724607,0.00116636,90175.0,90174.0,0.0180898]
[1765291725004,0.01225606,90175.0,90174.0,0.007]
[1765291725306,0.01225606,90175.0,90165.0,0.00110908]
[1765291725307,0.0110908,90166.0,90165.0,0.00110908]
[1765291725609,0.7326908,90166.0,90165.0,0.00110908]
[1765291726011,0.7216,90166.0,90165.0,0.00110908]
[1765291726197,0.7216,90166.0,90165.0,0.01220008]
[1765291726508,0.3618,90166.0,90165.0,0.00810908]
[1765291726899,0.3618,90166.0,90165.0,0.01110908]
[1765291727104,0.001,90166.0,90165.0,0.01110908]
[1765291729112,0.0120908,90166.0,90165.0,0.01110908]
[1765291729305,0.0110919,90157.0,90156.0,0.00016636]
[1765291729613,0.3718919,90157.0,90156.0,0.00016636]
[1765291730410,0.3608,90157.0,90156.0,0.00416636]
[1765291731011,0.3608,90158.0,90157.0,0.0110919]
[1765291731519,0.3608,90170.0,90169.0,0.0110905]
[1765291732102,0.3608,90170.0,90166.0,0.0110908]
[1765291732300,0.3608,90170.0,90165.0,0.0110909]
[1765291732511,0.3608,90170.0,90167.0,0.0110907]
[1765291734119,0.001,90170.0,90169.0,0.002]
[1765291734519,0.00016636,90175.0,90174.0,0.0110898]
[1765291735417,0.3608,90182.0,90181.0,0.011089]
[1765291735604,0.3608,90200.0,90190.0,0.0110879]
[1765291735809,0.3608,90200.0,90198.0,0.0110869]
[1765291736817,0.36096636,90208.0,90207.0,0.0110858]
[1765291737907,0.36996636,90208.0,90207.0,0.0130858]
[1765291738108,0.00916636,90208.0,90207.0,0.0130858]
[1765291738512,0.00916636,90208.0,90207.0,0.0120858]
[1765291739517,0.01216636,90208.0,90207.0,0.0120858]
[1765291740322,0.3608,90226.0,90207.0,0.0120858]
[1765291740323,0.3608,90226.0,90214.0,0.0110849]
[1765291740615,0.3608,90236.0,90232.0,0.0110826]
[1765291740807,0.3608,90236.0,90216.0,0.3608]
[1765291741015,0.3608,90225.0,90219.0,0.52032]
[1765291741210,0.3608,90236.0,90219.0,0.52032]
[1765291741410,0.3608,90236.0,90216.0,0.3718846]
[1765291741411,0.3608,90236.0,90218.0,0.00016627]
[1765291741716,0.3608,90219.0,90218.0,0.00016627]
[1765291742020,0.3608,90219.0,90218.0,0.01125067]
[1765291742222,0.3608,90219.0,90218.0,0.00016627]
[1765291742611,0.3718843,90219.0,90218.0,0.00016627]
[1765291742811,0.7326843,90219.0,90218.0,0.00016627]
[1765291743312,0.7216,90219.0,90218.0,0.00116627]
[1765291743723,0.7226,90219.0,90218.0,0.00216627]
[1765291744019,0.7236,90219.0,90218.0,0.00116627]
[1765291744316,0.7286,90219.0,90218.0,0.00116627]
[1765291744718,0.3678,90219.0,90218.0,0.00116627]
[1765291745423,0.3608,90233.0,90230.0,0.0110829]
[1765291745621,0.3608,90267.0,90232.0,0.7216]
[1765291745824,0.3608,90265.0,90251.0,0.3608]
[1765291746135,0.0110796,90258.0,90251.0,0.3608]
[1765291746321,0.0110796,90258.0,90249.0,0.0110805]
[1765291746517,0.0110802,90253.0,90244.0,0.0110811]
[1765291746724,0.1342618,90254.0,90244.0,0.0110811]
[1765291746922,0.1342618,90254.0,90240.0,0.3608]
[1765291746923,0.1342618,90254.0,90247.0,0.0110808]
[1765291747123,0.1342618,90260.0,90240.0,0.3608]
[1765291747420,0.3608,90265.0,90240.0,0.3608]
[1765291747421,0.3608,90265.0,90249.0,0.3608]
[1765291747619,0.005,90253.0,90250.0,0.0110805]
[1765291747826,0.005,90253.0,90252.0,0.3608]
[1765291748015,0.0110785,90267.0,90252.0,0.3608]
[1765291748216,0.006,90254.0,90253.0,0.0110801]
[1765291748423,0.006,90254.0,90247.0,0.001]
[1765291748726,0.008,90254.0,90253.0,0.3608]
[1765291749526,0.008,90254.0,90253.0,0.3718801]
[1765291750027,0.002,90254.0,90253.0,0.3608]
[1765291750225,0.1453409,90262.0,90253.0,0.3608]
[1765291750428,0.003,90254.0,90253.0,0.3608]
[1765291750728,0.01,90254.0,90253.0,0.3618]
[1765291751023,0.01,90254.0,90253.0,0.001]
[1765291751213,0.3708,90254.0,90253.0,0.001]
[1765291751915,0.3678,90254.0,90253.0,0.001]
[1765291752420,0.007,90254.0,90253.0,0.001]
[1765291752819,0.01,90254.0,90253.0,0.001]
[1765291753222,0.01,90254.0,90253.0,0.0120801]
[1765291755635,0.01,90254.0,90253.0,0.001]
[1765291756429,0.01,90254.0,90234.0,0.0110825]
[1765291756430,0.0110817,90240.0,90221.0,0.3608]
[1765291756628,0.0110837,90224.0,90214.0,0.0110849]
[1765291756830,0.0110836,90225.0,90216.0,0.0110846]
[1765291757131,0.3608,90229.0,90215.0,0.3608]
[1765291757335,0.4950618,90240.0,90231.0,0.0110828]
[1765291757528,0.1342618,90240.0,90233.0,0.0110825]
[1765291757728,0.1382618,90240.0,90239.0,0.001]
[1765291757929,0.3658,90240.0,90226.0,0.00016627]
[1765291758232,0.1342618,90236.0,90226.0,0.00016627]
[1765291758533,0.011083,90230.0,90226.0,0.00016627]
[1765291758730,0.0110833,90227.0,90226.0,0.00016627]
[1765291759130,0.0110833,90227.0,90226.0,0.00116627]
[1765291759527,0.001,90229.0,90226.0,0.00116627]
[1765291759935,0.004,90227.0,90226.0,0.00216627]
[1765291760622,0.004,90227.0,90226.0,0.36296627]
[1765291760827,0.005,90227.0,90226.0,0.00116627]
[1765291761142,0.005,90227.0,90226.0,0.72276627]
[1765291761336,0.005,90227.0,90226.0,0.36196627]
[1765291762523,0.005,90227.0,90226.0,0.00116627]
[1765291762722,0.005,90227.0,90195.0,0.0110873]
[1765291762723,0.0110843,90220.0,90195.0,0.0110873]
[1765291762923,0.0110843,90220.0,90215.0,0.0110848]
[1765291763122,0.0110838,90223.0,90215.0,0.0110848]
[1765291763335,0.3608,90225.0,90210.0,0.3608]
[1765291763527,0.0110852,90212.0,90210.0,0.3608]
[1765291763732,0.0110849,90215.0,90210.0,0.3608]
[1765291764030,0.0110847,90216.0,90215.0,0.001]
[1765291764631,0.4110847,90216.0,90215.0,0.001]
[1765291765035,0.0110861,90205.0,90202.0,0.00016627]
[1765291765237,0.3718859,90207.0,90202.0,0.00016627]
[1765291765627,0.3718846,90217.0,90208.0,0.0110856]
[1765291765828,0.0110849,90215.0,90202.0,0.00016627]
[1765291766035,0.0110857,90208.0,90202.0,0.00016627]
[1765291766234,0.3608,90209.0,90203.0,0.0110863]
[1765291766741,0.3608,90209.0,90208.0,0.001]
[1765291767238,0.3718855,90209.0,90202.0,0.00016627]
[1765291767545,0.011086,90206.0,90203.0,0.001]
[1765291767739,0.3638,90209.0,90203.0,0.001]
[1765291768042,0.3658,90209.0,90208.0,0.001]
[1765291769327,0.0110863,90203.0,90202.0,0.00016627]
[1765291769532,0.0110863,90203.0,90202.0,0.00116627]
[1765291770048,0.0110863,90203.0,90202.0,0.00016627]
[1765291770250,0.0110857,90208.0,90202.0,0.00016627]
[1765291770445,0.0110859,90207.0,90202.0,0.00016627]
[1765291770739,0.005,90203.0,90202.0,0.00116627]
[1765291772544,0.005,90208.0,90207.0,0.0110858]
[1765291773042,0.0110847,90216.0,90202.0,0.00216627]
[1765291773440,0.0110847,90216.0,90202.0,0.00116627]
[1765291773643,0.003,90208.0,90207.0,0.001]
[1765291774145,0.0110847,90216.0,90208.0,0.0110856]
[1765291774338,0.002,90216.0,90213.0,0.011085]
[1765291774846,0.002,90216.0,90215.0,0.3608]
[1765291775647,0.00016627,90220.0,90219.0,0.0110843]
[1765291776933,0.00616627,90220.0,90219.0,0.0120843]
[1765291777140,0.00616627,90220.0,90219.0,0.001]
[1765291778447,0.00716627,90220.0,90219.0,0.001]
[1765291780239,0.00716627,90220.0,90219.0,0.3618]
[1765291780240,0.006,90220.0,90219.0,0.3618]
[1765291780439,0.3608,90240.0,90237.0,0.011082]
[1765291780939,0.0110813,90244.0,90237.0,0.011082]
[1765291781248,0.3608,90249.0,90231.0,0.36096627]
[1765291781648,0.003,90240.0,90237.0,0.011082]
[1765291781848,0.01,90240.0,90239.0,0.3608]
[1765291782545,0.003,90240.0,90239.0,0.3608]
[1765291783439,0.008,90240.0,90239.0,0.3618]
[1765291784357,0.008,90240.0,90239.0,0.3628]
[1765291785165,0.0110809,90247.0,90240.0,0.0110817]
[1765291785455,0.00016627,90250.0,90248.0,0.0110807]
[1765291785643,0.00016627,90250.0,90249.0,0.3608]
[1765291786751,0.00016627,90250.0,90240.0,0.002]
[1765291786943,0.0110814,90243.0,90240.0,0.002]
[1765291787148,0.011081,90246.0,90240.0,0.002]
[1765291787552,0.0110808,90248.0,90243.0,0.0110813]
[1765291787851,0.19789503,90250.0,90234.0,0.0110825]
[1765291788055,0.19989503,90250.0,90249.0,0.001]
[1765291788349,0.01324677,90250.0,90249.0,0.001]
[1765291788556,0.0110814,90243.0,90240.0,0.001]
[1765291789166,0.0110814,90243.0,90231.0,0.36096627]
[1765291789658,0.0110813,90244.0,90231.0,0.36096627]
[1765291789846,0.19689503,90250.0,90231.0,0.36096627]
[1765291790053,0.0110812,90245.0,90238.0,0.011082]
[1765291790261,0.0110814,90243.0,90235.0,0.0110823]
[1765291790453,0.0110814,90243.0,90237.0,0.0110821]
[1765291790757,0.0110822,90236.0,90231.0,0.36296627]
[1765291791057,0.0110822,90237.0,90231.0,0.36296627]
[1765291791258,0.19672876,90241.0,90231.0,0.36496627]
[1765291791461,0.0110823,90236.0,90231.0,0.36296627]
[1765291791759,0.0110819,90239.0,90237.0,0.001]
[1765291793055,0.0110827,90232.0,90231.0,0.00216627]
[1765291793259,0.0110827,90232.0,90231.0,0.00416627]
[1765291793844,0.0110827,90232.0,90231.0,0.00216627]
[1765291795458,0.0120827,90232.0,90231.0,0.00416627]
[1765291795658,0.0120827,90232.0,90231.0,0.004]
[1765291795855,0.0120827,90232.0,90202.0,0.3608]
[1765291795856,0.0110854,90210.0,90204.0,0.0110861]
[1765291796066,0.401,90232.0,90202.0,0.3608]
[1765291796067,0.3608,90217.0,90202.0,0.3608]
[1765291796761,0.3608,90217.0,90209.0,0.0110854]
[1765291797061,0.3608,90217.0,90211.0,0.0110852]
[1765291797360,0.3608,90217.0,90209.0,0.0110855]
[1765291797361,0.3718846,90217.0,90209.0,0.0110855]
[1765291797860,0.001,90210.0,90209.0,0.0120855]
[1765291798353,0.3618,90217.0,90211.0,0.0110852]
[1765291798855,0.001,90210.0,90209.0,0.001]
[1765291799458,0.3738846,90217.0,90211.0,0.001]
[1765291799661,0.011085,90214.0,90211.0,0.001]
[1765291800052,0.011086,90205.0,90204.0,0.00016627]
[1765291800251,0.3608,90207.0,90205.0,0.011086]
[1765291800556,0.002,90217.0,90204.0,0.00016627]
[1765291800958,0.20781296,90220.0,90204.0,0.00016627]
[1765291801264,0.00016627,90222.0,90221.0,0.0110841]
[1765291801464,0.00016627,90222.0,90209.0,0.001]
[1765291801761,0.19672876,90220.0,90207.0,0.3608]
[1765291801964,0.0110856,90209.0,90204.0,0.00116627]
[1765291802159,0.0110858,90208.0,90204.0,0.00116627]
[1765291802350,0.3608,90211.0,90205.0,0.011086]
[1765291802555,0.3608,90211.0,90204.0,0.00016627]
[1765291802754,0.0110857,90208.0,90205.0,0.001]
[1765291803660,0.011086,90205.0,90204.0,0.00016627]
[1765291804156,0.011086,90205.0,90204.0,0.00116627]
[1765291804652,0.013086,90205.0,90204.0,0.00116627]
[1765291804857,0.0110888,90183.0,90178.0,0.3608]
[1765291805163,0.011087,90198.0,90178.0,0.3608]
[1765291805164,0.0110883,90187.0,90178.0,0.3608]
[1765291805352,0.011088,90189.0,90180.0,0.01122281]
[1765291805556,0.20781676,90190.0,90180.0,0.00013371]
[1765291805754,0.0110882,90188.0,90180.0,0.00013371]
[1765291806569,0.36096627,90193.0,90180.0,0.00013371]
[1765291806771,0.0110888,90183.0,90180.0,0.00013371]
[1765291806958,0.3718888,90183.0,90180.0,0.00013371]
[1765291807155,0.3728888,90183.0,90180.0,0.00313371]
[1765291807356,0.3728888,90183.0,90180.0,0.00413371]
[1765291807767,0.3608,90183.0,90180.0,0.00213371]
[1765291807956,0.0110882,90188.0,90180.0,0.00213371]
[1765291808156,0.0110884,90187.0,90180.0,0.00213371]
[1765291808361,0.20781666,90190.0,90180.0,0.00113371]
[1765291808564,0.001,90183.0,90180.0,0.01322281]
[1765291809070,0.001,90188.0,90183.0,0.0110887]
[1765291809368,0.0110887,90183.0,90180.0,0.00213371]
[1765291810266,0.011089,90181.0,90160.0,0.3608]
[1765291810471,0.0110908,90166.0,90150.0,0.3608]
[1765291811074,0.0110908,90166.0,90154.0,0.0110922]
[1765291811270,9.212e-05,90166.0,90165.0,0.01220008]
[1765291811870,0.00109212,90166.0,90165.0,0.01620008]
[1765291812668,0.00016636,90175.0,90174.0,0.0110898]
[1765291812966,0.3608,90194.0,90192.0,0.0110876]
[1765291813373,0.3608,90194.0,90186.0,0.3608]
[1765291813689,4.355e-05,90193.0,90186.0,0.3608]
[1765291813881,4.355e-05,90193.0,90186.0,0.3718883]
[1765291814071,0.01113115,90193.0,90186.0,0.3608]
[1765291814578,0.01113115,90193.0,90173.0,0.3718899]
[1765291814579,0.0110897,90176.0,90167.0,0.0110906]
[1765291814777,0.0110898,90174.0,90163.0,0.0110911]
[1765291814972,0.0110898,90174.0,90165.0,0.01519998]
[1765291815167,0.0110898,90174.0,90165.0,0.01219998]
[1765291815381,4.355e-05,90175.0,90165.0,0.36190908]
[1765291815584,4.355e-05,90175.0,90174.0,0.0110898]
[1765291816081,4.355e-05,90175.0,90173.0,0.3608]
[1765291816377,4.355e-05,90175.0,90165.0,0.36490908]
[1765291816378,0.01113335,90175.0,90165.0,0.36490908]
[1765291816578,0.01109,90173.0,90165.0,0.36490908]
[1765291816974,0.001,90174.0,90166.0,0.0110908]
[1765291817182,0.001,90174.0,90165.0,0.36890908]
[1765291817368,4.355e-05,90175.0,90167.0,0.0110906]
[1765291817569,4.355e-05,90175.0,90165.0,0.36890908]
[1765291817570,0.00104355,90175.0,90165.0,0.36890908]
[1765291817766,0.00104355,90175.0,90173.0,0.0110899]
[1765291817982,4.355e-05,90175.0,90173.0,0.0110899]
[1765291818175,0.001,90174.0,90173.0,0.3608]
[1765291818572,0.3608,90174.0,90165.0,0.00110908]
[1765291818773,0.3608,90174.0,90165.0,0.00510908]
[1765291819279,0.3608,90166.0,90165.0,0.00510908]
[1765291819481,0.36084355,90166.0,90165.0,0.00510908]
[1765291820182,0.36084355,90166.0,90165.0,0.00410908]
[1765291820781,0.36584355,90166.0,90165.0,0.00510908]
[1765291821684,0.36584355,90166.0,90165.0,0.00210908]
[1765291821879,0.00504355,90166.0,90165.0,0.00210908]
[1765291822183,0.00016636,90179.0,90178.0,0.0110894]
[1765291822481,0.00016636,90179.0,90167.0,0.0110907]
[1765291822482,0.0110861,90205.0,90196.0,0.0110871]
[1765291822671,0.19672876,90210.0,90174.0,0.0110898]
[1765291822874,0.19672876,90200.0,90168.0,0.02983269]
[1765291823078,0.19672876,90200.0,90160.0,0.71692876]
[1765291823079,0.19672876,90200.0,90197.0,0.0110869]
[1765291823280,0.19672876,90210.0,90204.0,0.0110861]
[1765291823477,0.00016636,90208.0,90191.0,0.0110877]
[1765291823688,0.00016636,90208.0,90207.0,0.0110858]
[1765291824781,0.011082,90239.0,90229.0,0.0110831]
[1765291824984,0.05918568,90246.0,90235.0,0.0110823]
[1765291825282,0.0110813,90244.0,90230.0,0.0110829]
[1765291825482,0.0110813,90244.0,90233.0,0.0110825]
[1765291825686,0.19672876,90250.0,90229.0,0.011083]
[1765291825687,0.0110812,90245.0,90229.0,0.011083]
[1765291825885,0.0110815,90242.0,90229.0,0.011083]
[1765291826092,0.0110828,90232.0,90228.0,0.00016626]
[1765291826986,0.0110813,90244.0,90229.0,0.001]
[1765291827187,0.0110815,90242.0,90229.0,0.001]
[1765291827384,0.0110815,90242.0,90228.0,0.01124936]
[1765291827688,0.00016626,90246.0,90228.0,0.01224936]
[1765291827689,0.004,90232.0,90228.0,0.01224936]
[1765291828079,0.0110819,90239.0,90229.0,0.001]
[1765291828286,0.0110823,90236.0,90229.0,0.001]
[1765291828487,0.0110828,90232.0,90229.0,0.001]
[1765291828680,0.0110823,90236.0,90229.0,0.001]
[1765291828879,0.002,90232.0,90229.0,0.001]
[1765291829489,0.3608,90241.0,90230.0,0.011083]
[1765291829685,0.006,90232.0,90228.0,0.00116626]
[1765291829884,0.006,90232.0,90229.0,0.0110831]
[1765291830087,0.002,90232.0,90228.0,0.00016626]
[1765291830284,0.006,90232.0,90229.0,0.001]
[1765291830482,0.006,90232.0,90229.0,0.0120831]
[1765291830675,0.006,90232.0,90231.0,0.0110828]
[1765291831187,0.002,90241.0,90230.0,0.3608]
[1765291831393,0.002,90241.0,90240.0,0.3608]
[1765291831775,0.002,90241.0,90230.0,0.3608]
[1765291831990,0.002,90241.0,90238.0,0.0110819]
[1765291832285,0.0110793,90260.0,90245.0,0.0110811]
[1765291832589,0.0110791,90262.0,90245.0,0.0110811]
[1765291832888,0.011079,90263.0,90245.0,0.0110811]
[1765291833084,0.0110784,90267.0,90245.0,0.0110811]
[1765291833274,0.3608,90271.0,90245.0,0.0110811]
[1765291833275,0.0110783,90268.0,90245.0,0.0110811]
[1765291833673,0.00416626,90246.0,90245.0,0.0120811]
[1765291833881,0.0110775,90275.0,90245.0,0.401]
[1765291834083,0.0110775,90275.0,90264.0,0.0110788]
[1765291834286,0.0110773,90277.0,90267.0,0.0110783]
[1765291834588,0.3608,90288.0,90271.0,0.3608]
[1765291834790,0.0110768,90281.0,90271.0,0.3608]
[1765291834990,0.0110773,90276.0,90271.0,0.3608]
[1765291836592,0.0140773,90276.0,90271.0,0.3608]
[1765291836787,0.003,90276.0,90271.0,0.3608]
[1765291837196,0.003,90276.0,90275.0,0.0110774]
[1765291837494,0.007,90276.0,90275.0,0.0110774]
[1765291838086,0.007,90276.0,90275.0,0.3718774]
[1765291838288,0.00016576,90289.0,90288.0,0.0110758]
[1765291838490,0.00016576,90289.0,90288.0,0.3718758]
[1765291838999,0.00016576,90289.0,90288.0,0.3608]
[1765291839590,0.00116576,90289.0,90288.0,0.3608]
[1765291839893,0.01217984,90315.0,90290.0,0.0110755]
[1765291840095,0.00110724,90315.0,90298.0,0.3608]
[1765291840300,0.00110724,90315.0,90314.0,0.0110727]
[1765291840794,0.1978357,90340.0,90314.0,0.3718727]
[1765291840795,0.0110698,90338.0,90314.0,0.3718727]
[1765291841093,0.00110694,90340.0,90335.0,0.3608]
[1765291841293,0.00110694,90340.0,90336.0,0.01107]
[1765291841687,0.0110696,90339.0,90331.0,0.3608]
[1765291841890,0.00110694,90340.0,90331.0,0.3608]
[1765291842200,0.0110702,90335.0,90331.0,0.3608]
[1765291842400,0.0110708,90329.0,90328.0,0.00016606]
[1765291842893,0.0110706,90331.0,90328.0,0.00016606]
[1765291843494,0.0110706,90331.0,90290.0,0.14487305]
[1765291843495,0.13379755,90338.0,90301.0,0.0110742]
[1765291843795,0.13379755,90338.0,90268.0,1.0641113]
[1765291843796,0.0110726,90315.0,90290.0,0.34863755]
[1765291844195,0.14487075,90310.0,90270.0,0.011078]
[1765291844499,0.00016572,90299.0,90297.0,0.0110746]
[1765291844883,0.00016572,90299.0,90298.0,0.3608]
[1765291845694,0.00116572,90299.0,90298.0,0.3608]
[1765291845882,0.0110746,90298.0,90297.0,0.009]
[1765291846088,0.00116572,90299.0,90297.0,0.009]
[1765291846380,0.00116572,90299.0,90287.0,0.3718759]
[1765291846381,0.00116572,90299.0,90298.0,0.008]
[1765291846786,0.00016572,90299.0,90298.0,0.001]
[1765291847587,0.00016572,90299.0,90297.0,0.004]
[1765291847788,0.00116572,90299.0,90297.0,0.004]
[1765291848283,0.01224022,90299.0,90288.0,0.0110758]
[1765291848482,0.00116572,90299.0,90298.0,0.005]
[1765291848888,0.00116572,90299.0,90294.0,0.011075]
[1765291849095,0.00116572,90299.0,90297.0,0.005]
[1765291849495,0.00116572,90299.0,90294.0,0.011075]
[1765291849692,0.00116572,90299.0,90298.0,0.005]
[1765291850088,0.00016572,90299.0,90298.0,0.005]
[1765291850289,0.00116572,90299.0,90298.0,0.005]
[1765291851105,0.00016572,90299.0,90281.0,0.01124266]
[1765291851289,0.3608,90293.0,90283.0,0.0110764]
[1765291851489,0.49459755,90293.0,90283.0,0.0110764]
[1765291851816,0.49459755,90293.0,90281.0,0.00016606]
[1765291851817,0.49459755,90293.0,90285.0,0.0110761]
[1765291852400,0.49559755,90293.0,90283.0,0.009]
[1765291852594,0.0110763,90284.0,90283.0,0.009]
[1765291852789,0.3618,90293.0,90283.0,0.009]
[1765291853100,0.00016572,90299.0,90298.0,0.0110746]